fUST/lending_fUST_20260312
["ID","MTS","AMOUNT","RATE_DAILY","PERIOD"]
[408210527,1773246640294,-500.0,9.206e-05,2]
[408210530,1773246640303,-771.0,9.206e-05,2]
[408210532,1773246640313,-500.0,9.206e-05,2]
[408210534,1773246640323,-500.0,9.206e-05,2]
[408210536,1773246640334,-500.0,9.206e-05,2]
[408210538,1773246640343,-500.0,9.206e-05,2]
[408210539,1773246640352,-1960.42414584,9.236e-05,2]
[408210541,1773246640361,-500.0,9.261e-05,2]
[408210543,1773246640370,-771.0,9.261e-05,2]
[408210545,1773246640379,-500.0,9.261e-05,2]
[408210547,1773246640389,-500.0,9.261e-05,2]
[408210549,1773246640398,-611.5401322,9.261e-05,2]
[408210551,1773246640408,-500.0,9.261e-05,2]
[408210553,1773246640417,-2500.0,9.284e-05,2]
[408210555,1773246640428,-2500.0,9.284e-05,2]
[408210557,1773246640437,-2500.0,9.284e-05,2]
[408210559,1773246640447,-2500.0,9.304e-05,2]
[408210562,1773246640456,-500.0,9.315e-05,2]
[408210564,1773246640466,-500.0,9.316e-05,2]
[408210592,1773246640739,-771.0,9.316e-05,2]
[408210594,1773246640749,-500.0,9.316e-05,2]
[408210596,1773246640758,-443.8258864,9.316e-05,2]
[408210598,1773246640768,-500.0,9.316e-05,2]
[408210600,1773246640777,-6893.91613378,9.318e-05,2]
[408210602,1773246640786,-600.0,9.331e-05,2]
[408210604,1773246640795,-638.0819631,9.342e-05,2]
[408210606,1773246640804,-3936.1946115,9.359e-05,2]
[408210608,1773246640813,-7282.79425712,9.363e-05,2]
[408210610,1773246640822,-638.0819631,9.37e-05,2]
[408210612,1773246640831,-500.0,9.371e-05,2]
[408210614,1773246640841,-500.0,9.371e-05,2]
[408210616,1773246640850,-771.0,9.371e-05,2]
[408210618,1773246640859,-500.0,9.371e-05,2]
[408210620,1773246640868,-3600.0,9.392e-05,14]
[408210622,1773246640877,-3600.0,9.392e-05,14]
[408210624,1773246640886,-3600.0,9.392e-05,14]
[408210626,1773246640895,-3600.0,9.392e-05,14]
[408210628,1773246640904,-3600.0,9.392e-05,14]
[408210630,1773246640913,-3600.0,9.392e-05,14]
[408210632,1773246640922,-1200.0,9.392e-05,14]
[408210634,1773246640931,-1200.0,9.392e-05,14]
[408210636,1773246640940,-1200.0,9.392e-05,14]
[408210638,1773246640949,-1200.0,9.392e-05,14]
[408210640,1773246640957,-1200.0,9.392e-05,14]
[408210642,1773246640967,-1150.0,9.392e-05,14]
[408210644,1773246640976,-1000.0,9.393e-05,2]
[408210646,1773246640985,-638.0819631,9.425e-05,2]
[408210648,1773246640994,-477.27258677,9.425e-05,2]
[408210650,1773246641003,-411.13059216,9.425e-05,2]
[408210652,1773246641012,-771.0,9.425e-05,2]
[408210654,1773246641021,-500.0,9.425e-05,2]
[408210656,1773246641031,-38000.0,9.451e-05,2]
[408210658,1773246641039,-638.0819631,9.452e-05,2]
[408210660,1773246641049,-1849.80321105,9.46e-05,2]
[408210662,1773246641058,-38000.0,9.46e-05,2]
[408210664,1773246641067,-38000.0,9.469e-05,2]
[408210665,1773246641076,-38000.0,9.477e-05,2]
[408210667,1773246641086,-771.0,9.48e-05,2]
[408210670,1773246641100,-213.89554101,9.48e-05,2]
[408210672,1773246641111,-38000.0,9.486e-05,2]
[408210673,1773246641120,-2000.0,9.487e-05,14]
[408210675,1773246641130,-2000.0,9.487e-05,14]
[408210678,1773246641141,-2000.0,9.487e-05,14]
[408210680,1773246641151,-2000.0,9.487e-05,14]
[408210681,1773246641162,-2000.0,9.487e-05,14]
[408210683,1773246641175,-1883.0,9.487e-05,14]
[408210686,1773246641186,-38000.0,9.495e-05,2]
[408210688,1773246641195,-38000.0,9.504e-05,2]
[408210690,1773246641206,-638.0819631,9.507e-05,2]
[408210692,1773246641215,-38000.0,9.513e-05,2]
[408210694,1773246641225,-38000.0,9.521e-05,2]
[408210695,1773246641235,-211.6466363,9.522e-05,2]
[408210698,1773246641245,-445.202766,9.522e-05,2]
[408210700,1773246641256,-162.380719,9.522e-05,2]
[408210702,1773246641265,-557.5788265,9.522e-05,2]
[408210703,1773246641275,-2230.315306,9.522e-05,2]
[408210706,1773246641285,-38000.0,9.53e-05,2]
[408210708,1773246641294,-771.0,9.535e-05,2]
[408210710,1773246641303,-38000.0,9.539e-05,2]
[408210712,1773246641312,-38000.0,9.543e-05,2]
[408210714,1773246641321,-38000.0,9.548e-05,2]
[408210716,1773246641330,-638.0819631,9.562e-05,2]
[408210718,1773246641340,-308.31720184,9.583e-05,17]
[408210720,1773246641349,-638.0819631,9.589e-05,2]
[408210722,1773246641357,-500.0,9.589e-05,2]
[408210724,1773246641367,-151.0,9.589e-05,2]
[408210726,1773246641376,-151.0,9.589e-05,2]
[408210728,1773246641386,-151.0,9.589e-05,2]
[408210730,1773246641395,-153.315842,9.589e-05,2]
[408210732,1773246641404,-150.0,9.589e-05,2]
[408210734,1773246641413,-771.0,9.59e-05,2]
[408210736,1773246641421,-160.0,9.6e-05,2]
[408210738,1773246641431,-4619.56173156,9.605e-05,2]
[408210740,1773246641440,-638.0819631,9.644e-05,2]
[408210742,1773246641449,-771.0,9.645e-05,2]
[408210744,1773246641458,-315.89050194,9.646e-05,2]
[408210746,1773246641466,-2560.5539864,9.668e-05,2]
[408210748,1773246641475,-150.0,9.69e-05,2]
[408210750,1773246641484,-150.0,9.69e-05,2]
[408210751,1773246641493,-638.0819631,9.699e-05,2]
[408210753,1773246641502,-771.0,9.699e-05,2]
[408210755,1773246641511,-308.31720184,9.706e-05,19]
[408210757,1773246641520,-638.0819631,9.726e-05,2]
[408210759,1773246641529,-771.0,9.754e-05,2]
[408210761,1773246641538,-150.0,9.768e-05,2]
[408210763,1773246641547,-638.0819631,9.781e-05,2]
[408210765,1773246641556,-554.73083502,9.786e-05,2]
[408210767,1773246641565,-1481.68495786,9.8e-05,2]
[408210769,1773246641574,-771.0,9.809e-05,2]
[408210771,1773246641584,-800.0,9.824e-05,2]
[408210773,1773246641593,-308.31720184,9.83e-05,20]
[408210775,1773246641602,-3000.0,9.832e-05,2]
[408210778,1773246641611,-3000.0,9.832e-05,2]
[408210780,1773246641620,-3000.0,9.832e-05,2]
[408210782,1773246641629,-638.0819631,9.836e-05,2]
[408210784,1773246641638,-150.0,9.847e-05,2]
[408210786,1773246641647,-5357.59822121,9.851e-05,2]
[408210787,1773246641656,-3000.0,9.852e-05,2]
[408210789,1773246641666,-500.0,9.863e-05,2]
[408210792,1773246641675,-771.0,9.864e-05,2]
[408210794,1773246641684,-800.0,9.871e-05,2]
[408210795,1773246641693,-900.0,9.878e-05,2]
[408210797,1773246641703,-771.0,9.919e-05,2]
[408210800,1773246641712,-150.0,9.925e-05,2]
[408210802,1773246641721,-308.31720184,9.953e-05,22]
[408210804,1773246641731,-771.0,9.973e-05,2]
[408210805,1773246641740,-500.0,0.0001,2]
[408210807,1773246641749,-500.0,0.0001,2]
[408210810,1773246641758,-500.0,0.0001,2]
[408210812,1773246641768,-508.60491342,0.0001,2]
[408210814,1773246641777,-500.0,0.0001,2]
[408210816,1773246641786,-500.0,0.0001,2]
[408210817,1773246641795,-500.0,0.0001,2]
[408210820,1773246641805,-500.0,0.0001,2]
[408210822,1773246641814,-250.53197153,0.0001,2]
[408210824,1773246641823,-292999.48981566,0.0001,2]
[408210826,1773246641840,-1216509.70784426,0.0001,2]
[408210828,1773246641849,-1000.0,0.0001,7]
[408210830,1773246641858,-598.782253,0.0001,2]
[408210832,1773246641867,-262.70169337,0.0001,2]
[408210834,1773246641876,-19128.33109929,0.0001,2]
[408210836,1773246641885,-156642.25274598,0.0001,2]
[408210838,1773246641894,-5000.0,0.0001,2]
[408210840,1773246641903,-151.0,0.0001,2]
[408210842,1773246641912,-151.0,0.0001,2]
[408210844,1773246641921,-151.0,0.0001,2]
[408210846,1773246641929,-151.0,0.0001,2]
[408210848,1773246641938,-151.0,0.0001,2]
[408210850,1773246641948,-151.0,0.0001,2]
[408210852,1773246641956,-151.0,0.0001,2]
[408210854,1773246641965,-151.0,0.0001,2]
[408210856,1773246641974,-151.0,0.0001,2]
[408210858,1773246641983,-151.0,0.0001,2]
[408210860,1773246641992,-151.0,0.0001,2]
[408210862,1773246642001,-151.0,0.0001,2]
[408210864,1773246642010,-151.0,0.0001,2]
[408210866,1773246642019,-151.0,0.0001,2]
[408210868,1773246642028,-151.0,0.0001,2]
[408210870,1773246642037,-151.0,0.0001,2]
[408210872,1773246642046,-151.0,0.0001,2]
[408210874,1773246642055,-151.0,0.0001,2]
[408210876,1773246642064,-151.0,0.0001,2]
[408210878,1773246642073,-155.00466815,0.0001,2]
[408210880,1773246642082,-180.0,0.0001,2]
[408210881,1773246642092,-151.0,0.0001,2]
[408210882,1773246642102,-151.0,0.0001,2]
[408210883,1773246642111,-151.0,0.0001,2]
[408210884,1773246642120,-151.0,0.0001,2]
[408210885,1773246642129,-151.0,0.0001,2]
[408210886,1773246642139,-273.40652967,0.0001,2]
[408210887,1773246642147,-21994.22373119,0.0001,2]
[408210888,1773246642156,-150.0,0.00010004,2]
[408210889,1773246642165,-400.0,0.00010012,2]
[408210890,1773246642175,-771.0,0.00010028,2]
[408210891,1773246642184,-400.0,0.00010066,2]
[408210892,1773246642193,-578.20924308,0.0001007,2]
[408210893,1773246642202,-2312.83697232,0.0001007,2]
[408210894,1773246642211,-308.31720184,0.00010076,23]
[408210895,1773246642220,-150.0,0.00010082,2]
[408210896,1773246642228,-771.0,0.00010083,2]
[408210897,1773246642237,-6150.30408047,0.00010098,2]
[408210898,1773246642246,-3250.0,0.00010098,7]
[408210899,1773246642255,-3240.70113904,0.000101,2]
[408210900,1773246642264,-400.0,0.00010119,2]
[408210901,1773246642272,-500.0,0.00010137,2]
[408210902,1773246642281,-300.0,0.00010137,2]
[408210903,1773246642290,-771.0,0.00010138,2]
[408210905,1773246642299,-150.0,0.00010161,2]
[408210907,1773246642308,-471.47836111,0.00010161,2]
[408210909,1773246642317,-400.0,0.00010173,2]
[408210911,1773246642326,-165.52593931,0.00010188,2]
[408210913,1773246642336,-771.0,0.00010192,2]
[408210915,1773246642345,-308.31720184,0.000102,24]
[408210917,1773246642354,-199.1,0.000102,7]
[408210919,1773246642363,-616.4825745,0.000102,2]
[408210921,1773246642373,-604.71634032,0.000102,2]
[408210923,1773246642382,-699.70562465,0.000102,2]
[408210925,1773246642392,-339.38,0.000102,2]
[408210927,1773246642401,-199.73290843,0.000102,2]
[408210929,1773246642409,-215.7230151,0.000102,2]
[408210931,1773246642418,-220.02715674,0.000102,2]
[408210933,1773246642427,-195.21742649,0.000102,2]
[408210935,1773246642436,-205.61500677,0.000102,2]
[408210937,1773246642445,-188.67741301,0.000102,2]
[408210939,1773246642454,-175.31512049,0.000102,2]
[408210940,1773246642464,-170.45188775,0.000102,2]
[408210943,1773246642473,-166.61998521,0.000102,2]
[408210945,1773246642482,-174.84620018,0.000102,2]
[408210947,1773246642491,-167.73418729,0.000102,2]
[408210949,1773246642500,-171.4181021,0.000102,2]
[408210951,1773246642509,-158.32594323,0.000102,2]
[408210953,1773246642519,-193.99094663,0.000102,2]
[408210955,1773246642529,-197.02369014,0.000102,2]
[408210956,1773246642538,-265.23591438,0.000102,2]
[408210958,1773246642547,-212.17576245,0.000102,2]
[408210960,1773246642556,-227.68951305,0.000102,2]
[408210962,1773246642565,-291.49291134,0.000102,2]
[408210965,1773246642574,-253.02396013,0.000102,2]
[408210967,1773246642585,-307.23177733,0.000102,2]
[408210969,1773246642594,-283.27488715,0.000102,2]
[408210970,1773246642603,-259.83651326,0.000102,2]
[408210972,1773246642613,-359.70100543,0.000102,2]
[408210975,1773246642622,-179.8505027,0.000102,2]
[408210977,1773246642631,-222.97243345,0.000102,2]
[408210978,1773246642641,-161.79226133,0.000102,2]
[408210981,1773246642650,-314.53192577,0.000102,2]
[408210983,1773246642659,-235.89894432,0.000102,2]
[408210985,1773246642669,-201.12369717,0.000102,2]
[408210987,1773246642679,-235.47,0.00010211,2]
[408210989,1773246642688,-400.0,0.00010227,2]
[408210991,1773246642698,-150.0,0.00010239,2]
[408210993,1773246642707,-791.52301426,0.00010247,2]
[408210995,1773246642716,-400.0,0.00010281,2]
[408210997,1773246642726,-150.0,0.00010318,2]
[408210999,1773246642735,-308.31720184,0.00010323,26]
[408211001,1773246642746,-1000.0,0.00010333,2]
[408211003,1773246642757,-244.0,0.00010333,2]
[408211005,1773246642767,-400.0,0.00010334,2]
[408211007,1773246642776,-168.3888056,0.00010343,2]
[408211009,1773246642785,-6997.67930934,0.00010345,2]
[408211011,1773246642795,-3980.39537378,0.00010348,2]
[408211013,1773246642804,-598.782253,0.00010352,2]
[408211015,1773246642813,-3500.0,0.0001038,2]
[408211017,1773246642823,-3242.99344664,0.0001038,2]
[408211020,1773246642833,-1000.0,0.0001038,2]
[408211022,1773246642842,-400.0,0.00010388,2]
[408211025,1773246642852,-150.0,0.00010396,2]
[408211027,1773246642861,-3500.0,0.000104,2]
[408211029,1773246642870,-344.0,0.00010411,120]
[408211031,1773246642880,-500.0,0.00010411,2]
[408211033,1773246642889,-1200.0,0.00010426,2]
[408211035,1773246642898,-400.0,0.00010442,2]
[408211037,1773246642907,-308.31720184,0.00010446,27]
[408211039,1773246642916,-150.0,0.00010475,2]
[408211041,1773246642925,-400.0,0.00010495,2]
[408211043,1773246642934,-4000.86560375,0.00010532,2]
[408211045,1773246642944,-400.0,0.00010549,2]
[408211048,1773246642953,-150.0,0.00010553,2]
[408211051,1773246642962,-308.31720184,0.00010569,29]
[408211054,1773246642971,-7899.72390781,0.00010592,2]
[408211057,1773246642981,-400.0,0.00010603,2]
[408211059,1773246642990,-364.20412574,0.00010617,2]
[408211062,1773246643000,-599.60298507,0.00010618,2]
[408211065,1773246643009,-2398.4119403,0.00010618,2]
[408211068,1773246643019,-150.0,0.00010632,2]
[408211071,1773246643027,-400.0,0.00010656,2]
[408211074,1773246643036,-500.0,0.00010685,2]
[408211077,1773246643046,-507.747346,0.00010685,2]
[408211079,1773246643056,-308.31720184,0.00010693,30]
[408211081,1773246643065,-598.782253,0.00010703,2]
[408211083,1773246643074,-623.98528123,0.0001071,2]
[408211085,1773246643084,-400.0,0.0001071,2]
[408211087,1773246643097,-290.0,0.0001071,2]
[408211089,1773246643106,-298.0,0.0001071,2]
[408211091,1773246643115,-308.31720184,0.00010816,30]
[408211093,1773246643124,-8856.43787588,0.00010838,2]
[408211095,1773246643134,-945.0,0.000109,2]
[408211097,1773246643143,-616.4825745,0.0001091,2]
[408211099,1773246643153,-199.94001799,0.0001091,5]
[408211101,1773246643163,-4000.0,0.00010928,2]
[408211103,1773246643173,-308.31720184,0.00010939,30]
[408211105,1773246643183,-4000.0,0.00010948,2]
[408211107,1773246643195,-500.0,0.00010959,2]
[408211109,1773246643204,-166.0,0.00010959,2]
[408211111,1773246643213,-235.00675574,0.00010959,2]
[408211113,1773246643222,-227.562662,0.00010959,2]
[408211115,1773246643232,-151.0,0.00010959,2]
[408211117,1773246643241,-162.465836,0.00010959,2]
[408211119,1773246643250,-151.0,0.00010959,2]
[408211121,1773246643260,-151.0,0.00010959,2]
[408211123,1773246643269,-151.0,0.00010959,2]
[408211125,1773246643279,-151.0,0.00010959,2]
[408211127,1773246643288,-151.0,0.00010959,2]
[408211129,1773246643297,-151.0,0.00010959,2]
[408211131,1773246643307,-151.0,0.00010959,2]
[408211133,1773246643316,-151.0,0.00010959,2]
[408211135,1773246643325,-151.0,0.00010959,2]
[408211137,1773246643334,-151.0,0.00010959,2]
[408211139,1773246643344,-278.121244,0.00010959,2]
[408211141,1773246643353,-151.0,0.00010959,2]
[408211143,1773246643363,-151.0,0.00010959,2]
[408211145,1773246643372,-151.0,0.00010959,2]
[408211147,1773246643382,-238.293172,0.00010959,2]
[408211149,1773246643391,-151.0,0.00010959,2]
[408211151,1773246643400,-151.0,0.00010959,2]
[408211153,1773246643409,-151.0,0.00010959,2]
[408211155,1773246643418,-250.328491,0.00010959,2]
[408211157,1773246643427,-1609.068267,0.00010959,2]
[408211159,1773246643436,-1609.068267,0.00010959,2]
[408211161,1773246643445,-1609.068267,0.00010959,2]
[408211163,1773246643455,-1609.068267,0.00010959,2]
[408211165,1773246643464,-1609.068267,0.00010959,2]
[408211167,1773246643474,-1609.068267,0.00010959,2]
[408211169,1773246643483,-1609.068267,0.00010959,2]
[408211171,1773246643492,-1609.068267,0.00010959,2]
[408211173,1773246643502,-1609.068267,0.00010959,2]
[408211175,1773246643511,-1609.068267,0.00010959,2]
[408211177,1773246643521,-1609.068267,0.00010959,2]
[408211179,1773246643530,-1609.068267,0.00010959,2]
[408211181,1773246643539,-1609.068267,0.00010959,2]
[408211183,1773246643548,-1609.068267,0.00010959,2]
[408211185,1773246643557,-1609.068267,0.00010959,2]
[408211187,1773246643566,-1609.068267,0.00010959,2]
[408211189,1773246643576,-1609.068267,0.00010959,2]
[408211191,1773246643586,-1609.068267,0.00010959,2]
[408211193,1773246643595,-1609.068267,0.00010959,2]
[408211195,1773246643604,-1609.068267,0.00010959,2]
[408211197,1773246643613,-151.0,0.00010959,2]
[408211199,1773246643623,-151.00001,0.00010959,2]
[408211201,1773246643632,-151.0,0.00010959,2]
[408211203,1773246643641,-151.0,0.00010959,2]
[408211205,1773246643650,-264.078202,0.00010959,2]
[408211207,1773246643659,-235.89502204,0.00010959,2]
[408211209,1773246643668,-4841.04738054,0.00010963,2]
[408211211,1773246643678,-1500.0,0.00010974,2]
[408211213,1773246643687,-1048.0,0.00011,2]
[408211215,1773246643696,-151.0,0.00011,2]
[408211217,1773246643705,-227.68951305,0.00011061,2]
[408211219,1773246643715,-308.31720184,0.00011063,30]
[408211221,1773246643724,-604.71634032,0.00011066,2]
[408211223,1773246643733,-404.08654498,0.00011069,2]
[408211225,1773246643743,-9867.82121356,0.00011085,2]
[408211227,1773246643752,-428.65758162,0.00011099,2]
[408211229,1773246643761,-235.47,0.00011104,2]
[408211230,1773246643771,-621.78829552,0.00011166,2]
[408211231,1773246643780,-2487.15318209,0.00011166,2]
[408211232,1773246643789,-308.21720184,0.00011186,30]
[408211233,1773246643798,-500.0,0.00011233,2]
[408211234,1773246643808,-2000.0,0.00011252,2]
[408211235,1773246643817,-2000.0,0.00011252,2]
[408211236,1773246643835,-2000.0,0.00011252,2]
[408211237,1773246643844,-2000.0,0.00011252,2]
[408211238,1773246643853,-2000.0,0.00011252,2]
[408211239,1773246643862,-2000.0,0.00011252,2]
[408211240,1773246643871,-2000.0,0.00011252,2]
[408211241,1773246643880,-2000.0,0.00011252,2]
[408211242,1773246643890,-2000.0,0.00011252,2]
[408211243,1773246643899,-2000.0,0.00011252,2]
[408211244,1773246643909,-10922.94004692,0.00011332,2]
[408211246,1773246643919,-1000.0,0.00011366,2]
[408211247,1773246643928,-492.0,0.00011366,2]
[408211249,1773246643938,-5761.2464694,0.00011395,2]
[408211250,1773246643947,-4615.5338464,0.00011418,2]
[408211251,1773246643957,-4500.0,0.00011476,2]
[408211252,1773246643967,-4500.0,0.00011496,2]
[408211253,1773246643977,-500.0,0.00011507,2]
[408211254,1773246643986,-1800.0,0.00011522,2]
[408211255,1773246643996,-700.0,0.00011547,2]
[408211256,1773246644006,-700.0,0.00011547,2]
[408211257,1773246644015,-700.0,0.00011547,2]
[408211258,1773246644024,-700.0,0.00011547,2]
[408211259,1773246644034,-700.0,0.00011547,2]
[408211260,1773246644044,-700.0,0.00011547,2]
[408211261,1773246644054,-700.0,0.00011547,2]
[408211262,1773246644063,-700.0,0.00011547,2]
[408211264,1773246644072,-700.0,0.00011547,2]
[408211266,1773246644081,-700.0,0.00011547,2]
[408211273,1773246644271,-3250.0,0.00011568,7]
[408211274,1773246644281,-3250.0,0.00011568,7]
[408211275,1773246644291,-3250.0,0.00011568,7]
[408211276,1773246644300,-3250.0,0.00011568,7]
[408211277,1773246644309,-3250.0,0.00011568,7]
[408211278,1773246644319,-3250.0,0.00011568,7]
[408211279,1773246644328,-1000.0,0.00011568,7]
[408211281,1773246644338,-1000.0,0.00011568,7]
[408211283,1773246644346,-1000.0,0.00011568,7]
[408211284,1773246644355,-1000.0,0.00011568,7]
[408211286,1773246644364,-1000.0,0.00011568,7]
[408211288,1773246644373,-850.0,0.00011568,7]
[408211290,1773246644382,-2000.0,0.00011595,2]
[408211292,1773246644391,-2000.0,0.00011595,2]
[408211293,1773246644400,-2000.0,0.00011595,2]
[408211295,1773246644409,-2000.0,0.00011595,2]
[408211297,1773246644418,-2000.0,0.00011595,2]
[408211299,1773246644427,-2000.0,0.00011595,2]
[408211301,1773246644436,-2000.0,0.00011595,2]
[408211304,1773246644445,-2000.0,0.00011595,2]
[408211305,1773246644455,-2000.0,0.00011595,2]
[408211307,1773246644464,-2000.0,0.00011595,2]
[408211309,1773246644473,-2000.0,0.00011597,2]
[408211311,1773246644482,-2000.0,0.00011597,2]
[408211313,1773246644491,-2000.0,0.00011597,2]
[408211314,1773246644499,-2000.0,0.00011597,2]
[408211316,1773246644508,-2000.0,0.00011597,2]
[408211318,1773246644517,-2000.0,0.00011597,2]
[408211320,1773246644527,-2000.0,0.00011597,2]
[408211322,1773246644535,-2000.0,0.00011597,2]
[408211323,1773246644544,-2000.0,0.00011597,2]
[408211325,1773246644553,-2000.0,0.00011597,2]
[408211327,1773246644562,-3000.0,0.00011612,7]
[408211329,1773246644571,-1906.0,0.00011612,7]
[408211331,1773246644581,-1650.0,0.00011612,7]
[408211332,1773246644590,-1650.0,0.00011612,7]
[408211334,1773246644599,-1650.0,0.00011612,7]
[408211336,1773246644608,-1472.0,0.00011612,7]
[408211338,1773246644617,-170.45188775,0.00011612,7]
[408211340,1773246644626,-616.4825745,0.00011619,7]
[408211342,1773246644635,-2000.0,0.00011663,2]
[408211343,1773246644644,-2000.0,0.00011663,2]
[408211345,1773246644653,-2000.0,0.00011663,2]
[408211347,1773246644662,-2000.0,0.00011663,2]
[408211349,1773246644671,-2000.0,0.00011663,2]
[408211351,1773246644680,-2000.0,0.00011663,2]
[408211353,1773246644689,-2000.0,0.00011663,2]
[408211355,1773246644698,-2000.0,0.00011663,2]
[408211357,1773246644708,-2000.0,0.00011663,2]
[408211358,1773246644717,-2000.0,0.00011663,2]
[408211360,1773246644726,-2000.0,0.00011663,2]
[408211362,1773246644736,-2000.0,0.00011663,2]
[408211364,1773246644745,-2000.0,0.00011663,2]
[408211366,1773246644754,-2000.0,0.00011663,2]
[408211368,1773246644762,-2000.0,0.00011663,2]
[408211370,1773246644772,-2000.0,0.00011663,2]
[408211372,1773246644781,-2000.0,0.00011663,2]
[408211373,1773246644789,-2000.0,0.00011663,2]
[408211375,1773246644798,-2000.0,0.00011663,2]
[408211377,1773246644807,-2000.0,0.00011663,2]
[408211379,1773246644816,-3250.0,0.00011684,7]
[408211381,1773246644826,-3250.0,0.00011684,7]
[408211383,1773246644835,-3250.0,0.00011684,7]
[408211384,1773246644844,-174.61919141,0.00011712,2]
[408211386,1773246644853,-2579.17784983,0.00011714,2]
[408211388,1773246644864,-3250.0,0.00011729,7]
[408211390,1773246644873,-3250.0,0.00011729,7]
[408211392,1773246644882,-3250.0,0.00011729,7]
[408211394,1773246644890,-3250.0,0.00011729,7]
[408211396,1773246644900,-3250.0,0.00011729,7]
[408211398,1773246644908,-3250.0,0.00011729,7]
[408211399,1773246644917,-500.0,0.00011781,2]
[408211401,1773246644926,-3250.0,0.00011802,7]
[408211403,1773246644936,-3250.0,0.00011802,7]
[408211406,1773246644953,-3250.0,0.00011802,7]
[408211408,1773246644965,-3250.0,0.00011802,7]
[408211410,1773246644976,-3250.0,0.00011802,7]
[408211412,1773246644986,-3250.0,0.00011802,7]
[408211414,1773246644996,-6761.46287034,0.00011827,2]
[408211416,1773246645006,-166.61998521,0.00011847,7]
[408211418,1773246645017,-945.0,0.000119,2]
[408211420,1773246645027,-199.94001799,0.0001191,5]
[408211422,1773246645036,-253.02396013,0.00011922,7]
[408211424,1773246645046,-291.49291134,0.00011922,7]
[408211426,1773246645055,-227.68951305,0.00011922,7]
[408211428,1773246645064,-604.71634032,0.00011932,7]
[408211430,1773246645075,-259.83651326,0.00011932,7]
[408211432,1773246645085,-359.70100543,0.00011932,7]
[408211434,1773246645098,-171.4181021,0.0001197,7]
[408211436,1773246645108,-1886.592,0.00011996,2]
[408211437,1773246645118,-1098.848,0.00011996,2]
[408211439,1773246645127,-2001.05299867,0.00012,2]
[408211441,1773246645137,-1787.44851815,0.00012024,2]
[408211443,1773246645147,-1041.03108086,0.00012044,2]
[408211445,1773246645157,-235.89894432,0.00012055,7]
[408211447,1773246645167,-500.0,0.00012055,2]
[408211449,1773246645177,-2100.0,0.0001207,2]
[408211451,1773246645186,-197.02369014,0.00012126,7]
[408211453,1773246645196,-174.84620018,0.00012177,7]
[408211455,1773246645205,-156.98,0.00012216,2]
[408211456,1773246645215,-7833.85488677,0.00012259,2]
[408211458,1773246645225,-2674.60743027,0.00012262,2]
[408211460,1773246645235,-616.4825745,0.00012329,7]
[408211462,1773246645245,-500.0,0.00012329,2]
[408211464,1773246645255,-21785.05,0.00012329,2]
[408211466,1773246645264,-18154.21,0.00012329,2]
[408211468,1773246645274,-15128.51,0.00012329,2]
[408211470,1773246645286,-12607.09,0.00012329,2]
[408211472,1773246645296,-10505.91,0.00012329,2]
[408211474,1773246645305,-8754.92,0.00012329,2]
[408211476,1773246645315,-7295.77,0.00012329,2]
[408211478,1773246645325,-6079.81,0.00012329,2]
[408211480,1773246645335,-3250.0,0.00012333,7]
[408211482,1773246645345,-3250.0,0.00012333,7]
[408211484,1773246645354,-3250.0,0.00012333,7]
[408211486,1773246645364,-3250.0,0.00012333,7]
[408211488,1773246645373,-3250.0,0.00012333,7]
[408211490,1773246645383,-3250.0,0.00012333,7]
[408211492,1773246645392,-156.98,0.00012437,2]
[408211493,1773246645402,-167.73418729,0.00012457,7]
[408211495,1773246645412,-4622.32316661,0.00012487,2]
[408211497,1773246645422,-1000.0,0.00012503,2]
[408211499,1773246645431,-791.0,0.00012503,2]